fUSD/lending_fUSD_20240712
["ID","MTS","AMOUNT","RATE_DAILY","PERIOD"]
[331800134,1720765947545,-541.87,0.0001452,2]
[331800135,1720765947555,-561.01,0.0001452,2]
[331800136,1720765947565,-526.37,0.0001452,2]
[331800137,1720765947575,-658.35,0.0001452,2]
[331800138,1720765947585,-597.81,0.0001452,2]
[331800139,1720765947596,-665.34,0.0001452,2]
[331800140,1720765947605,-879.54,0.0001452,2]
[331800141,1720765947615,-1042.83,0.0001452,2]
[331800142,1720765947624,-500.0,0.0001452,2]
[331800143,1720765947634,-500.0,0.0001452,2]
[331800144,1720765947644,-801.96,0.0001452,2]
[331800145,1720765947653,-676.83,0.0001452,2]
[331800146,1720765947663,-576.46,0.0001452,2]
[331800147,1720765947672,-679.71,0.0001452,2]
[331800148,1720765947681,-699.82,0.0001452,2]
[331800149,1720765947691,-902.64,0.0001452,2]
[331800150,1720765947700,-500.0,0.0001452,2]
[331800151,1720765947710,-969.66,0.0001452,2]
[331800152,1720765947720,-1386.9,0.0001452,2]
[331800153,1720765947729,-500.0,0.0001452,2]
[331800154,1720765947740,-832.86,0.0001452,2]
[331800155,1720765947750,-1142.56,0.0001452,2]
[331800156,1720765947759,-584.03,0.0001452,2]
[331800157,1720765947769,-678.02,0.0001452,2]
[331800158,1720765947778,-965.58,0.0001452,2]
[331800159,1720765947787,-980.86,0.0001452,2]
[331800160,1720765947797,-500.0,0.0001452,2]
[331800161,1720765947806,-500.0,0.0001452,2]
[331800162,1720765947815,-625.22,0.0001452,2]
[331800163,1720765947825,-174.89239137,0.0001452,2]
[331800164,1720765947835,-1043.71,0.0001452,2]
[331800165,1720765947844,-500.0,0.0001452,2]
[331800166,1720765947853,-1095.96,0.0001452,2]
[331800167,1720765947863,-663.07,0.0001452,2]
[331800168,1720765947872,-242.64,0.0001452,2]
[331800169,1720765947882,-1311.76,0.0001452,2]
[331800170,1720765947892,-500.0,0.0001452,2]
[331800171,1720765947902,-1064.74,0.0001452,2]
[331800172,1720765947912,-500.0,0.0001452,2]
[331800173,1720765947921,-500.0,0.0001452,2]
[331800174,1720765947931,-1453.03,0.0001452,2]
[331800175,1720765947942,-506.91,0.0001452,2]
[331800176,1720765947952,-625.46,0.0001452,2]
[331800177,1720765947962,-651.67,0.0001452,2]
[331800178,1720765947972,-1301.15,0.0001452,2]
[331800179,1720765947982,-618.62,0.0001452,2]
[331800180,1720765947992,-612.13623125,0.0001452,2]
[331800181,1720765948002,-1182.83,0.0001452,2]
[331800182,1720765948012,-500.0,0.0001452,2]
[331800183,1720765948022,-871.11,0.0001452,2]
[331800184,1720765948032,-886.56,0.0001452,2]
[331800185,1720765948042,-500.0,0.0001452,2]
[331800186,1720765948051,-1085.4,0.0001452,2]
[331800187,1720765948061,-896.6,0.0001452,2]
[331800188,1720765948071,-830.96,0.0001452,2]
[331800189,1720765948080,-674.06,0.0001452,2]
[331800190,1720765948090,-1895.01,0.0001452,2]
[331800191,1720765948099,-1172.9,0.0001452,2]
[331800192,1720765948109,-1660.92,0.0001452,2]
[331800193,1720765948119,-644.5,0.0001452,2]
[331800194,1720765948129,-1467.31,0.0001452,2]
[331800195,1720765948139,-981.49,0.0001452,2]
[331800196,1720765948149,-500.0,0.0001452,2]
[331800197,1720765948158,-1112.45,0.0001452,2]
[331800198,1720765948169,-721.53,0.0001452,2]
[331800199,1720765948178,-773.09,0.0001452,2]
[331800200,1720765948188,-750.22,0.0001452,2]
[331800201,1720765948199,-617.12,0.0001452,2]
[331800202,1720765948208,-1485.55,0.0001452,2]
[331800203,1720765948219,-645.73,0.0001452,2]
[331800204,1720765948228,-609.33,0.0001452,2]
[331800205,1720765948238,-1043.11,0.0001452,2]
[331800206,1720765948248,-577.94,0.0001452,2]
[331800207,1720765948258,-1001.09,0.0001452,2]
[331800208,1720765948269,-572.94,0.0001452,2]
[331800209,1720765948279,-826.26,0.0001452,2]
[331800210,1720765948289,-500.0,0.0001452,2]
[331800211,1720765948299,-863.68,0.0001452,2]
[331800212,1720765948311,-978.71,0.0001452,2]
[331800213,1720765948322,-927.14,0.0001452,2]
[331800214,1720765948333,-1033.49,0.0001452,2]
[331800215,1720765948344,-267.59964869,0.0001452,2]
[331800216,1720765948355,-584.99,0.0001452,2]
[331800217,1720765948364,-1551.06,0.0001452,2]
[331800218,1720765948374,-924.22,0.0001452,2]
[331800219,1720765948384,-936.64,0.0001452,2]
[331800220,1720765948394,-500.0,0.0001452,2]
[331800221,1720765948403,-1266.54,0.0001452,2]
[331800222,1720765948413,-583.16,0.0001452,2]
[331800223,1720765948422,-1145.72,0.0001452,2]
[331800224,1720765948431,-628.89,0.0001452,2]
[331800225,1720765948441,-1072.75,0.0001452,2]
[331800226,1720765948450,-882.64,0.0001452,2]
[331800227,1720765948459,-908.15,0.0001452,2]
[331800228,1720765948469,-617.45,0.0001452,2]
[331800229,1720765948479,-500.0,0.0001452,2]
[331800230,1720765948489,-597.8,0.0001452,2]
[331800231,1720765948499,-1413.12,0.0001452,2]
[331800232,1720765948508,-684.65,0.0001452,2]
[331800233,1720765948520,-1269.4,0.0001452,2]
[331800234,1720765948529,-1009.57,0.0001452,2]
[331800235,1720765948540,-820.34,0.0001452,2]
[331800236,1720765948550,-570.33,0.0001452,2]
[331800237,1720765948559,-751.75,0.0001452,2]
[331800238,1720765948570,-377.93164748,0.0001452,2]
[331800239,1720765948580,-1287.67,0.0001452,2]
[331800240,1720765948589,-922.77,0.0001452,2]
[331800241,1720765948599,-500.0,0.0001452,2]
[331800242,1720765948610,-1345.39,0.0001452,2]
[331800243,1720765948620,-649.45,0.0001452,2]
[331800244,1720765948631,-536.18,0.0001452,2]
[331800245,1720765948643,-500.0,0.0001452,2]
[331800246,1720765948654,-895.96,0.0001452,2]
[331800247,1720765948664,-566.55,0.0001452,2]
[331800248,1720765948674,-729.38,0.0001452,2]
[331800249,1720765948683,-500.0,0.0001452,2]
[331800250,1720765948693,-1632.41,0.0001452,2]
[331800251,1720765948702,-647.44,0.0001452,2]
[331800252,1720765948712,-1661.47,0.0001452,2]
[331800253,1720765948722,-1622.68,0.0001452,2]
[331800254,1720765948734,-1461.03,0.0001452,2]
[331800255,1720765948743,-932.1,0.0001452,2]
[331800256,1720765948754,-600.18,0.0001452,2]
[331800257,1720765948764,-528.77,0.0001452,2]
[331800258,1720765948774,-652.76,0.0001452,2]
[331800259,1720765948784,-590.79,0.0001452,2]
[331800260,1720765948793,-649.76,0.0001452,2]
[331800261,1720765948802,-562.94,0.0001452,2]
[331800262,1720765948812,-500.0,0.0001452,2]
[331800263,1720765948822,-511.55,0.0001452,2]
[331800264,1720765948834,-682.84,0.0001452,2]
[331800265,1720765948845,-500.0,0.0001452,2]
[331800266,1720765948959,-913.11,0.0001452,2]
[331800267,1720765948969,-500.0,0.0001452,2]
[331800268,1720765948979,-557.92,0.0001452,2]
[331800269,1720765948989,-500.0,0.0001452,2]
[331800270,1720765948999,-665.1,0.0001452,2]
[331800271,1720765949008,-500.0,0.0001452,2]
[331800272,1720765949018,-647.57,0.0001452,2]
[331800273,1720765949027,-655.14,0.0001452,2]
[331800274,1720765949037,-1070.59,0.0001452,2]
[331800275,1720765949048,-500.0,0.0001452,2]
[331800276,1720765949059,-549.77,0.0001452,2]
[331800277,1720765949069,-955.34,0.0001452,2]
[331800278,1720765949078,-308.3488069,0.0001452,2]
[331800279,1720765949087,-572.55,0.0001452,2]
[331800280,1720765949097,-1087.88,0.0001452,2]
[331800281,1720765949107,-924.38,0.0001452,2]
[331800282,1720765949116,-895.76,0.0001452,2]
[331800283,1720765949127,-877.72,0.0001452,2]
[331800284,1720765949137,-811.35,0.0001452,2]
[331800285,1720765949147,-701.46,0.0001452,2]
[331800286,1720765949158,-943.64,0.0001452,2]
[331800287,1720765949167,-535.3,0.0001452,2]
[331800288,1720765949177,-951.0,0.0001452,2]
[331800289,1720765949186,-533.99,0.0001452,2]
[331800290,1720765949196,-500.0,0.0001452,2]
[331800291,1720765949205,-691.79,0.0001452,2]
[331800292,1720765949214,-749.0,0.0001452,2]
[331800293,1720765949224,-1153.39,0.0001452,2]
[331800294,1720765949234,-646.61,0.0001452,2]
[331800295,1720765949244,-828.98,0.0001452,2]
[331800296,1720765949253,-500.0,0.0001452,2]
[331800297,1720765949263,-797.92,0.0001452,2]
[331800298,1720765949272,-678.2,0.0001452,2]
[331800299,1720765949282,-925.55,0.0001452,2]
[331800300,1720765949291,-742.09,0.0001452,2]
[331800301,1720765949301,-718.26,0.0001452,2]
[331800302,1720765949311,-660.22,0.0001452,2]
[331800303,1720765949320,-685.66,0.0001452,2]
[331800304,1720765949330,-616.92,0.0001452,2]
[331800305,1720765949341,-626.69,0.0001452,2]
[331800306,1720765949351,-578.66,0.0001452,2]
[331800307,1720765949360,-1182.27,0.0001452,2]
[331800308,1720765949370,-751.88,0.0001452,2]
[331800309,1720765949379,-788.87,0.0001452,2]
[331800310,1720765949389,-589.96,0.0001452,2]
[331800311,1720765949399,-1518.85,0.0001452,2]
[331800312,1720765949409,-500.0,0.0001452,2]
[331800313,1720765949419,-863.12,0.0001452,2]
[331800314,1720765949428,-500.0,0.0001452,2]
[331800315,1720765949437,-765.3,0.0001452,2]
[331800316,1720765949447,-1173.86,0.0001452,2]
[331800317,1720765949456,-500.0,0.0001452,2]
[331800318,1720765949466,-714.93,0.0001452,2]
[331800319,1720765949476,-500.0,0.0001452,2]
[331800320,1720765949487,-889.91,0.0001452,2]
[331800321,1720765949497,-500.0,0.0001452,2]
[331800322,1720765949507,-797.27,0.0001452,2]
[331800323,1720765949518,-500.0,0.0001452,2]
[331800324,1720765949530,-508.63,0.0001452,2]
[331800325,1720765949539,-500.0,0.0001452,2]
[331800326,1720765949549,-1002.89,0.0001452,2]
[331800327,1720765949559,-512.8,0.0001452,2]
[331800328,1720765949570,-905.0,0.0001452,2]
[331800329,1720765949579,-500.0,0.0001452,2]
[331800330,1720765949588,-500.0,0.0001452,2]
[331800331,1720765949599,-500.0,0.0001452,2]
[331800332,1720765949611,-504.61,0.0001452,2]
[331800333,1720765949621,-500.0,0.0001452,2]
[331800334,1720765949633,-500.0,0.0001452,2]
[331800335,1720765949643,-998.09,0.0001452,2]
[331800336,1720765949652,-1181.8,0.0001452,2]
[331800337,1720765949664,-1692.88,0.0001452,2]
[331800338,1720765949674,-500.0,0.0001452,2]
[331800339,1720765949683,-806.67,0.0001452,2]
[331800340,1720765949693,-1115.55,0.0001452,2]
[331800341,1720765949702,-1111.86,0.0001452,2]
[331800342,1720765949711,-500.0,0.0001452,2]
[331800343,1720765949721,-408.90493328,0.0001452,2]
[331800344,1720765949731,-1152.37,0.0001452,2]
[331800345,1720765949742,-500.0,0.0001452,2]
[331800346,1720765949751,-1099.21,0.0001452,2]
[331800347,1720765949761,-500.0,0.0001452,2]
[331800348,1720765949770,-958.58,0.0001452,2]
[331800349,1720765949779,-1435.54,0.0001452,2]
[331800350,1720765949789,-286.88945318,0.0001452,2]
[331800351,1720765949800,-933.39,0.0001452,2]
[331800352,1720765949809,-547.73972503,0.0001452,2]
[331800353,1720765949819,-885.22,0.0001452,2]
[331800354,1720765949830,-525.55,0.0001452,2]
[331800355,1720765949839,-578.47,0.0001452,2]
[331800356,1720765949850,-585.1,0.0001452,2]
[331800357,1720765949859,-768.43,0.0001452,2]
[331800358,1720765949870,-500.0,0.0001452,2]
[331800359,1720765949879,-1131.03,0.0001452,2]
[331800360,1720765949889,-500.66,0.0001452,2]
[331800361,1720765949899,-1387.16,0.0001452,2]
[331800362,1720765949909,-769.71,0.0001452,2]
[331800363,1720765949918,-929.61,0.0001452,2]
[331800364,1720765949928,-500.0,0.0001452,2]
[331800365,1720765949939,-1195.55,0.0001452,2]
[331800366,1720765949949,-1164.92,0.0001452,2]
[331800367,1720765949959,-592.67,0.0001452,2]
[331800368,1720765949969,-832.05,0.0001452,2]
[331800369,1720765949979,-1157.39,0.0001452,2]
[331800370,1720765949989,-965.25,0.0001452,2]
[331800371,1720765949999,-1057.96,0.0001452,2]
[331800372,1720765950008,-500.0,0.0001452,2]
[331800373,1720765950019,-663.73,0.0001452,2]
[331800374,1720765950028,-500.0,0.0001452,2]
[331800375,1720765950037,-996.83,0.0001452,2]
[331800376,1720765950048,-778.42,0.0001452,2]
[331800377,1720765950059,-500.94,0.0001452,2]
[331800378,1720765950069,-500.0,0.0001452,2]
[331800379,1720765950080,-1011.24,0.0001452,2]
[331800380,1720765950089,-500.0,0.0001452,2]
[331800381,1720765950099,-724.27,0.0001452,2]
[331800382,1720765950108,-948.7,0.0001452,2]
[331800383,1720765950118,-1338.17,0.0001452,2]
[331800384,1720765950128,-894.67,0.0001452,2]
[331800385,1720765950138,-500.0,0.0001452,2]
[331800386,1720765950148,-691.16,0.0001452,2]
[331800387,1720765950159,-706.91,0.0001452,2]
[331800388,1720765950168,-226.56947255,0.0001452,2]
[331800389,1720765950177,-1648.59,0.0001452,2]
[331800390,1720765950186,-579.34,0.0001452,2]
[331800391,1720765950196,-534.75,0.0001452,2]
[331800392,1720765950206,-6673.84,0.0001452,2]
[331800393,1720765950216,-596.02319633,0.0001452,2]
[331800394,1720765950229,-791.66,0.0001452,2]
[331800395,1720765950239,-868.6,0.0001452,2]
[331800396,1720765950249,-503.87,0.0001452,2]
[331800397,1720765950258,-500.0,0.0001452,2]
[331800398,1720765950271,-1463.05,0.0001452,2]
[331800399,1720765950281,-500.0,0.0001452,2]
[331800400,1720765950290,-1711.11,0.0001452,2]
[331800401,1720765950300,-940.12,0.0001452,2]
[331800402,1720765950309,-533.72976087,0.0001452,2]
[331800403,1720765950318,-1103.87,0.0001452,2]
[331800404,1720765950327,-838.82,0.0001452,2]
[331800405,1720765950336,-906.68,0.0001452,2]
[331800406,1720765950348,-774.99,0.0001452,2]
[331800407,1720765950358,-500.0,0.0001452,2]
[331800408,1720765950368,-1003.46,0.0001452,2]
[331800409,1720765950378,-776.49,0.0001452,2]
[331800410,1720765950387,-715.19,0.0001452,2]
[331800411,1720765950398,-2671.99,0.0001452,2]
[331800412,1720765950409,-811.17,0.0001452,2]
[331800413,1720765950418,-500.0,0.0001452,2]
[331800414,1720765950428,-1169.16,0.0001452,2]
[331800415,1720765950440,-804.64,0.0001452,2]
[331800416,1720765950451,-516.06,0.0001452,2]
[331800417,1720765950460,-1567.42,0.0001452,2]
[331800418,1720765950470,-1123.97,0.0001452,2]
[331800419,1720765950479,-1159.17,0.0001452,2]
[331800420,1720765950491,-7796.51,0.0001452,2]
[331800421,1720765950500,-682.47,0.0001452,2]
[331800422,1720765950510,-884.1,0.0001452,2]
[331800423,1720765950523,-3427.86,0.0001452,2]
[331800424,1720765950533,-761.42,0.0001452,2]
[331800425,1720765950542,-500.0,0.0001452,2]
[331800426,1720765950551,-500.0,0.0001452,2]
[331800427,1720765950560,-2349.61,0.0001452,2]
[331800428,1720765950570,-2824.19,0.0001452,2]
[331800429,1720765950580,-544.06,0.0001452,2]
[331800430,1720765950589,-1413.14,0.0001452,2]
[331800431,1720765950600,-500.0,0.0001452,2]
[331800432,1720765950609,-746.16,0.0001452,2]
[331800433,1720765950619,-568.05,0.0001452,2]
[331800434,1720765950628,-1225.06,0.0001452,2]
[331800435,1720765950637,-1040.64,0.0001452,2]
[331800436,1720765950647,-500.0,0.0001452,2]
[331800437,1720765950657,-502.01,0.0001452,2]
[331800438,1720765950666,-945.48,0.0001452,2]
[331800439,1720765950675,-1864.03,0.0001452,2]
[331800440,1720765950685,-500.0,0.0001452,2]
[331800441,1720765950694,-782.62,0.0001452,2]
[331800442,1720765950703,-3139.48,0.0001452,2]
[331800443,1720765950713,-967.92,0.0001452,2]
[331800444,1720765950722,-817.59,0.0001452,2]
[331800445,1720765950732,-760.77,0.0001452,2]
[331800446,1720765950743,-672.02,0.0001452,2]
[331800447,1720765950753,-457.57451083,0.0001452,2]
[331800448,1720765950762,-500.0,0.0001452,2]
[331800449,1720765950771,-1369.87,0.0001452,2]
[331800450,1720765950781,-503.52,0.0001452,2]
[331800451,1720765950790,-927.94,0.0001452,2]
[331800452,1720765950799,-510.11,0.0001452,2]
[331800453,1720765950808,-883.29,0.0001452,2]
[331800454,1720765950818,-500.0,0.0001452,2]
[331800455,1720765950828,-703.12,0.0001452,2]
[331800456,1720765950837,-913.43,0.0001452,2]
[331800457,1720765950847,-1249.82,0.0001452,2]
[331800458,1720765950856,-500.0,0.0001452,2]
[331800459,1720765950865,-698.85,0.0001452,2]
[331800460,1720765950875,-500.0,0.0001452,2]
[331800461,1720765950884,-513.61,0.0001452,2]
[331800462,1720765950893,-3390.01,0.0001452,2]
[331800463,1720765950903,-977.7,0.0001452,2]
[331800464,1720765950912,-522.91,0.0001452,2]
[331800465,1720765950921,-641.99,0.0001452,2]
[331800466,1720765950931,-760.44,0.0001452,2]
[331800467,1720765950940,-853.13,0.0001452,2]
[331800468,1720765950950,-534.54,0.0001452,2]
[331800469,1720765950960,-158.92801915,0.00014521,2]
[331800470,1720765950969,-563.19374,0.00014521,2]
[331800471,1720765950979,-529.07,0.00014521,2]
[331800472,1720765950991,-529.07,0.00014521,2]
[331800473,1720765951000,-529.07,0.00014521,2]
[331800474,1720765951009,-529.07,0.00014521,2]
[331800475,1720765951018,-152.0,0.00014521,2]
[331800476,1720765951027,-500.0,0.00014575,2]
[331800477,1720765951037,-500.0,0.00014575,2]
[331800478,1720765951046,-500.0,0.00014575,2]
[331800479,1720765951056,-500.0,0.00014575,2]
[331800480,1720765951065,-500.0,0.00014575,2]
[331800481,1720765951075,-600.13,0.00014575,2]
[331800482,1720765951085,-500.0,0.00014575,2]
[331800483,1720765951094,-533.46,0.00014575,2]
[331800484,1720765951103,-547.29,0.00014575,2]
[331800485,1720765951113,-527.94,0.00014575,2]
[331800486,1720765951123,-500.0,0.00014575,2]
[331800487,1720765951134,-829.62,0.00014575,2]
[331800488,1720765951143,-678.42,0.00014575,2]
[331800489,1720765951153,-495.27948828,0.00014575,2]
[331800490,1720765951164,-500.0,0.00014575,2]
[331800491,1720765951173,-500.0,0.00014575,2]
[331800492,1720765951182,-1078.13,0.00014575,2]
[331800493,1720765951192,-599.97,0.00014575,2]
[331800494,1720765951201,-572.91,0.00014575,2]
[331800495,1720765951211,-550.66179565,0.00014575,2]
[331800496,1720765951220,-541.87,0.00014575,2]
[331800497,1720765951230,-561.01,0.00014575,2]
[331800498,1720765951241,-526.37,0.00014575,2]
[331800499,1720765951252,-658.35,0.00014575,2]
[331800500,1720765951261,-597.81,0.00014575,2]
[331800501,1720765951271,-665.34,0.00014575,2]
[331800502,1720765951281,-879.54,0.00014575,2]
[331800503,1720765951290,-1042.83,0.00014575,2]
[331800504,1720765951300,-500.0,0.00014575,2]
[331800505,1720765951310,-500.0,0.00014575,2]
[331800506,1720765951320,-801.96,0.00014575,2]
[331800507,1720765951331,-676.83,0.00014575,2]
[331800508,1720765951341,-576.46,0.00014575,2]
[331800509,1720765951351,-679.71,0.00014575,2]
[331800510,1720765951361,-699.82,0.00014575,2]
[331800511,1720765951370,-902.64,0.00014575,2]
[331800512,1720765951380,-500.0,0.00014575,2]
[331800513,1720765951390,-969.66,0.00014575,2]
[331800514,1720765951400,-1386.9,0.00014575,2]
[331800515,1720765951410,-462.97865017,0.00014575,2]
[331800516,1720765951420,-832.86,0.00014575,2]
[331800517,1720765951429,-1142.56,0.00014575,2]
[331800518,1720765951438,-584.03,0.00014575,2]
[331800519,1720765951448,-678.02,0.00014575,2]
[331800520,1720765951457,-965.58,0.00014575,2]
[331800521,1720765951467,-980.86,0.00014575,2]
[331800522,1720765951476,-500.0,0.00014575,2]
[331800523,1720765951487,-500.0,0.00014575,2]
[331800524,1720765951496,-625.22,0.00014575,2]
[331800525,1720765951506,-1043.71,0.00014575,2]
[331800526,1720765951516,-500.0,0.00014575,2]
[331800527,1720765951529,-1095.96,0.00014575,2]
[331800528,1720765951539,-663.07,0.00014575,2]
[331800529,1720765951548,-1311.76,0.00014575,2]
[331800530,1720765951559,-500.0,0.00014575,2]
[331800531,1720765951569,-1064.74,0.00014575,2]
[331800532,1720765951579,-500.0,0.00014575,2]
[331800533,1720765951588,-500.0,0.00014575,2]
[331800534,1720765951600,-1453.03,0.00014575,2]
[331800535,1720765951610,-506.91,0.00014575,2]
[331800536,1720765951619,-625.46,0.00014575,2]
[331800537,1720765951629,-651.67,0.00014575,2]
[331800538,1720765951639,-1301.15,0.00014575,2]
[331800539,1720765951649,-618.62,0.00014575,2]
[331800540,1720765951659,-1182.83,0.00014575,2]
[331800541,1720765951669,-500.0,0.00014575,2]
[331800542,1720765951678,-871.11,0.00014575,2]
[331800543,1720765951689,-886.56,0.00014575,2]
[331800544,1720765951698,-500.0,0.00014575,2]
[331800545,1720765951708,-1085.4,0.00014575,2]
[331800546,1720765951718,-896.6,0.00014575,2]
[331800547,1720765951727,-830.96,0.00014575,2]
[331800548,1720765951738,-674.06,0.00014575,2]
[331800549,1720765951748,-1895.01,0.00014575,2]
[331800550,1720765951757,-1172.9,0.00014575,2]
[331800551,1720765951767,-1660.92,0.00014575,2]
[331800552,1720765951777,-644.5,0.00014575,2]
[331800553,1720765951786,-1467.31,0.00014575,2]
[331800554,1720765951796,-981.49,0.00014575,2]
[331800555,1720765951806,-500.0,0.00014575,2]
[331800556,1720765951816,-1112.45,0.00014575,2]
[331800557,1720765951825,-721.53,0.00014575,2]
[331800558,1720765951835,-773.09,0.00014575,2]
[331800559,1720765951845,-750.22,0.00014575,2]
[331800560,1720765951855,-617.12,0.00014575,2]
[331800561,1720765951864,-1485.55,0.00014575,2]
[331800562,1720765951874,-645.73,0.00014575,2]
[331800563,1720765951884,-609.33,0.00014575,2]
[331800564,1720765951894,-1043.11,0.00014575,2]
[331800565,1720765951904,-577.94,0.00014575,2]
[331800566,1720765951914,-1001.09,0.00014575,2]
[331800567,1720765951923,-572.94,0.00014575,2]
[331800568,1720765951933,-826.26,0.00014575,2]
[331800569,1720765951943,-335.93807673,0.00014575,2]
[331800570,1720765951954,-863.68,0.00014575,2]
[331800571,1720765951963,-978.71,0.00014575,2]
[331800572,1720765951973,-927.14,0.00014575,2]
[331800573,1720765951983,-1033.49,0.00014575,2]
[331800574,1720765951993,-584.99,0.00014575,2]
[331800575,1720765952004,-1551.06,0.00014575,2]
[331800576,1720765952013,-924.22,0.00014575,2]
[331800577,1720765952023,-936.64,0.00014575,2]
[331800578,1720765952032,-500.0,0.00014575,2]
[331800579,1720765952042,-1266.54,0.00014575,2]
[331800580,1720765952051,-583.16,0.00014575,2]
[331800581,1720765952060,-1145.72,0.00014575,2]
[331800582,1720765952070,-628.89,0.00014575,2]
[331800583,1720765952079,-1072.75,0.00014575,2]
[331800584,1720765952089,-882.64,0.00014575,2]
[331800585,1720765952098,-908.15,0.00014575,2]
[331800586,1720765952108,-617.45,0.00014575,2]
[331800587,1720765952118,-500.0,0.00014575,2]
[331800588,1720765952127,-597.8,0.00014575,2]
[331800589,1720765952137,-1413.12,0.00014575,2]
[331800590,1720765952146,-684.65,0.00014575,2]
[331800591,1720765952156,-1269.4,0.00014575,2]
[331800592,1720765952166,-1009.57,0.00014575,2]
[331800593,1720765952176,-820.34,0.00014575,2]
[331800594,1720765952186,-570.33,0.00014575,2]
[331800595,1720765952195,-751.75,0.00014575,2]
[331800596,1720765952205,-1287.67,0.00014575,2]
[331800597,1720765952214,-922.77,0.00014575,2]
[331800598,1720765952223,-170.5,0.00014575,2]
[331800599,1720765952233,-1345.39,0.00014575,2]
[331800600,1720765952244,-649.45,0.00014575,2]
[331800601,1720765952254,-500.0,0.00014575,2]
[331800602,1720765952263,-536.18,0.00014575,2]
[331800603,1720765952273,-895.96,0.00014575,2]
[331800604,1720765952283,-566.55,0.00014575,2]
[331800605,1720765952292,-729.38,0.00014575,2]
[331800606,1720765952301,-500.0,0.00014575,2]
[331800607,1720765952310,-1632.41,0.00014575,2]
[331800608,1720765952320,-1661.47,0.00014575,2]
[331800609,1720765952330,-1622.68,0.00014575,2]
[331800610,1720765952339,-1461.03,0.00014575,2]
[331800611,1720765952348,-600.18,0.00014575,2]
[331800612,1720765952359,-932.1,0.00014575,2]
[331800613,1720765952369,-652.76,0.00014575,2]
[331800614,1720765952380,-590.79,0.00014575,2]
[331800615,1720765952390,-649.76,0.00014575,2]
[331800616,1720765952399,-562.94,0.00014575,2]
[331800617,1720765952409,-500.0,0.00014575,2]
[331800618,1720765952418,-511.55,0.00014575,2]
[331800619,1720765952428,-682.84,0.00014575,2]
[331800620,1720765952437,-500.0,0.00014575,2]
[331800621,1720765952447,-913.11,0.00014575,2]
[331800622,1720765952457,-500.0,0.00014575,2]
[331800623,1720765952466,-557.92,0.00014575,2]
[331800624,1720765952475,-500.0,0.00014575,2]
[331800625,1720765952485,-665.1,0.00014575,2]
[331800626,1720765952495,-429.52,0.00014575,2]
[331800627,1720765952505,-647.57,0.00014575,2]
[331800628,1720765952515,-655.14,0.00014575,2]
[331800629,1720765952527,-1070.59,0.00014575,2]
[331800630,1720765952536,-159.71225823,0.00014575,2]
[331800631,1720765952547,-549.77,0.00014575,2]
[331800632,1720765952556,-955.34,0.00014575,2]
[331800633,1720765952567,-572.55,0.00014575,2]